[Event "*** Titled Tuesday Blitz"]
[Site "Chess.com"]
[Date "2019.08.06"]
[Round "8"]
[White "Etoilegeniale"]
[Black "WPWPWP-2015"]
[Result "1/2-1/2"]
[WhiteElo "2522"]
[BlackElo "2422"]
[TimeControl "180+2"]
[EndTime "15:00:05 PDT"]
[Termination "Game drawn by agreement"]

1. e4 {[%clk 0:03:01.6]} 1... e5 {[%clk 0:02:57.3]} 2. Nf3 {[%clk 0:03:00]} 2...
Nc6 {[%clk 0:02:56.9]} 3. Bc4 {[%clk 0:02:59.7]} 3... Nf6 {[%clk 0:02:57.4]} 4.
d3 {[%clk 0:03:00.2]} 4... Be7 {[%clk 0:02:58]} 5. O-O {[%clk 0:03:00.8]} 5...
O-O {[%clk 0:02:58.9]} 6. Re1 {[%clk 0:03:00.8]} 6... d6 {[%clk 0:02:59.8]} 7.
a4 {[%clk 0:02:58.8]} 7... Na5 {[%clk 0:02:57.6]} 8. Ba2 {[%clk 0:02:58.7]} 8...
Be6 {[%clk 0:02:53.8]} 9. Bxe6 {[%clk 0:02:51.9]} 9... fxe6 {[%clk 0:02:54.4]}
10. b4 {[%clk 0:02:52.6]} 10... Nc6 {[%clk 0:02:54.4]} 11. c3 {[%clk 0:02:53.8]}
11... Qd7 {[%clk 0:02:52.5]} 12. Nbd2 {[%clk 0:02:53.8]} 12... a6 {[%clk
0:02:49.8]} 13. Nf1 {[%clk 0:02:54.4]} 13... b5 {[%clk 0:02:49.6]} 14. Ng3
{[%clk 0:02:53.9]} 14... Rfb8 {[%clk 0:02:34]} 15. Bd2 {[%clk 0:02:50.4]} 15...
Nd8 {[%clk 0:02:29.4]} 16. Qb3 {[%clk 0:02:33.4]} 16... c6 {[%clk 0:02:08.6]}
17. h3 {[%clk 0:02:28.6]} 17... h6 {[%clk 0:02:07.5]} 18. Nh4 {[%clk 0:02:21.3]}
18... Kh7 {[%clk 0:02:06.5]} 19. Nf3 {[%clk 0:02:20.4]} 19... Ra7 {[%clk
0:01:54.9]} 20. d4 {[%clk 0:02:19.3]} 20... exd4 {[%clk 0:01:46.2]} 21. cxd4
{[%clk 0:02:20]} 21... Nf7 {[%clk 0:01:03.2]} 22. e5 {[%clk 0:02:18.4]} 22...
dxe5 {[%clk 0:00:59.4]} 23. dxe5 {[%clk 0:02:11.9]} 23... Nd5 {[%clk 0:00:59.1]}
24. Ne4 {[%clk 0:02:12.4]} 24... bxa4 {[%clk 0:00:49.6]} 25. Rxa4 {[%clk
0:02:10.4]} 25... Kg8 {[%clk 0:00:43.3]} 26. Qd3 {[%clk 0:01:51.9]} 26... Nxb4
{[%clk 0:00:36.4]} 27. Qxd7 {[%clk 0:01:52.2]} 27... Rxd7 {[%clk 0:00:36.5]} 28.
Rb1 {[%clk 0:01:52.9]} 28... c5 {[%clk 0:00:29.2]} 29. Be3 {[%clk 0:01:07.5]}
29... Rd5 {[%clk 0:00:17]} 30. Nc3 {[%clk 0:00:59.8]} 30... Rd3 {[%clk
0:00:17.6]} 31. Ne4 {[%clk 0:01:00.1]} 31... Rc8 {[%clk 0:00:09.1]} 32. Bxc5
{[%clk 0:00:39.5]} 32... Bxc5 {[%clk 0:00:09.7]} 33. Nxc5 {[%clk 0:00:40.2]}
33... Rxc5 {[%clk 0:00:10.6]} 34. Rbxb4 {[%clk 0:00:40.2]} 34... Nxe5 {[%clk
0:00:10.4]} 35. Nxe5 {[%clk 0:00:39]} 35... Rxe5 {[%clk 0:00:10.8]} 36. Rxa6
{[%clk 0:00:39.3]} 36... Rd7 {[%clk 0:00:08.7]} 37. Rf4 {[%clk 0:00:37.8]} 37...
Kh7 {[%clk 0:00:06.5]} 38. h4 {[%clk 0:00:38.5]} 38... Re7 {[%clk 0:00:07.1]}
39. g3 {[%clk 0:00:39.3]} 39... Rd7 {[%clk 0:00:05.7]} 40. Kg2 {[%clk
0:00:40.3]} 40... h5 {[%clk 0:00:06.7]} 41. Ra8 {[%clk 0:00:40.5]} 41... Kg6
{[%clk 0:00:07.6]} 42. Re8 {[%clk 0:00:40.6]} 42... Rf7 {[%clk 0:00:08.2]} 43.
Kf3 {[%clk 0:00:34.6]} 43... Rxf4+ {[%clk 0:00:08.1]} 44. Kxf4 {[%clk
0:00:31.4]} 44... Rf5+ {[%clk 0:00:09.2]} 45. Ke3 {[%clk 0:00:32]} 45... Re5+
{[%clk 0:00:08.6]} 46. Kd3 {[%clk 0:00:26.7]} 46... Kf7 {[%clk 0:00:09.2]} 47.
Ra8 {[%clk 0:00:26.8]} 47... Rb5 {[%clk 0:00:09.5]} 48. Ra7+ {[%clk 0:00:25.9]}
48... Kf6 {[%clk 0:00:10.4]} 49. Ke3 {[%clk 0:00:26.8]} 49... Rb3+ {[%clk
0:00:10.4]} 50. Ke2 {[%clk 0:00:27.7]} 50... g6 {[%clk 0:00:10.2]} 51. Kf1
{[%clk 0:00:28.6]} 51... Rb2 {[%clk 0:00:10.9]} 52. Kg2 {[%clk 0:00:29.5]} 52...
Rc2 {[%clk 0:00:12.2]} 53. Ra4 {[%clk 0:00:30.1]} 53... Rc3 {[%clk 0:00:13.1]}
54. Rf4+ {[%clk 0:00:30.8]} 54... Ke7 {[%clk 0:00:13.7]} 55. Rf3 {[%clk
0:00:31.3]} 55... Rc2 {[%clk 0:00:14]} 56. Rf4 {[%clk 0:00:29.2]} 56... Rc3
{[%clk 0:00:14.3]} 57. Kf1 {[%clk 0:00:29.2]} 57... Rc2 {[%clk 0:00:15]} 58. Ke1
{[%clk 0:00:30.2]} 58... Ra2 {[%clk 0:00:15.5]} 59. Re4 {[%clk 0:00:28.5]} 59...
Kf6 {[%clk 0:00:16]} 60. Re2 {[%clk 0:00:29.1]} 60... Ra3 {[%clk 0:00:16]} 61.
Rd2 {[%clk 0:00:28.7]} 61... Kf5 {[%clk 0:00:15.9]} 62. Ke2 {[%clk 0:00:28.1]}
62... e5 {[%clk 0:00:15.7]} 63. Rd8 {[%clk 0:00:22.5]} 63... Kf6 {[%clk
0:00:14.6]} 64. Rf8+ {[%clk 0:00:22]} 64... Ke7 {[%clk 0:00:14.5]} 65. Rb8
{[%clk 0:00:20.5]} 65... Kf6 {[%clk 0:00:15.1]} 66. Kf1 {[%clk 0:00:19.9]} 66...
Ra2 {[%clk 0:00:14.3]} 67. Kg2 {[%clk 0:00:20.5]} 67... e4 {[%clk 0:00:14.1]}
68. Re8 {[%clk 0:00:20.5]} 68... Kf5 {[%clk 0:00:14.7]} 69. Kf1 {[%clk
0:00:21.5]} 69... Ra1+ {[%clk 0:00:13.5]} 70. Kg2 {[%clk 0:00:21.6]} 70... Ra2
{[%clk 0:00:14.5]} 71. Rf8+ {[%clk 0:00:22.4]} 71... Ke5 {[%clk 0:00:14.1]} 72.
Rf7 {[%clk 0:00:20.5]} 72... Rb2 {[%clk 0:00:13.9]} 73. Rf8 {[%clk 0:00:21]}
73... Rc2 {[%clk 0:00:14.4]} 74. g4 {[%clk 0:00:21.8]} 74... hxg4 {[%clk
0:00:06.8]} 75. Kg3 {[%clk 0:00:23]} 75... Rc1 {[%clk 0:00:06.8]} 76. Re8+
{[%clk 0:00:20.9]} 76... Kf5 {[%clk 0:00:06.8]} 77. Rf8+ {[%clk 0:00:21.2]}
77... Ke5 {[%clk 0:00:07.6]} 78. Kxg4 {[%clk 0:00:21.5]} 78... Rg1+ {[%clk
0:00:08.4]} 79. Kh3 {[%clk 0:00:22.6]} 79... Rh1+ {[%clk 0:00:08.6]} 80. Kg3
{[%clk 0:00:23.2]} 80... Rg1+ {[%clk 0:00:09.7]} 81. Kh2 {[%clk 0:00:23.3]}
81... Rg4 {[%clk 0:00:07.4]} 82. Kh3 {[%clk 0:00:24.3]} 82... Rg1 {[%clk
0:00:08.3]} 83. Re8+ {[%clk 0:00:21]} 83... Kf5 {[%clk 0:00:07.7]} 84. Rf8+
{[%clk 0:00:20.4]} 84... Ke5 {[%clk 0:00:08.5]} 85. Rf7 {[%clk 0:00:21]} 85...
Rh1+ {[%clk 0:00:06.2]} 86. Kg3 {[%clk 0:00:20.6]} 86... Rg1+ {[%clk 0:00:07]}
87. Kh2 {[%clk 0:00:21.6]} 87... Rg4 {[%clk 0:00:06.1]} 88. Kh3 {[%clk
0:00:22.3]} 88... Rf4 {[%clk 0:00:03.8]} 89. Re7+ {[%clk 0:00:19.5]} 89... Kf6
{[%clk 0:00:03.9]} 90. Re8 {[%clk 0:00:18.3]} 90... Kf7 {[%clk 0:00:04.5]} 91.
Re5 {[%clk 0:00:19.3]} 91... Rxf2 {[%clk 0:00:04.3]} 92. Rxe4 {[%clk 0:00:20.1]}
92... Rf5 {[%clk 0:00:04.8]} 93. Kg4 {[%clk 0:00:20.9]} 93... Ra5 {[%clk
0:00:05.6]} 94. Rb4 {[%clk 0:00:21.8]} 94... Kg7 {[%clk 0:00:06.6]} 95. Rb6
{[%clk 0:00:22.6]} 95... Rc5 {[%clk 0:00:06.3]} 96. Rb4 {[%clk 0:00:22.4]} 96...
Kh6 {[%clk 0:00:06.8]} 97. Re4 {[%clk 0:00:23.1]} 97... Ra5 {[%clk 0:00:07.7]}
98. Kf4 {[%clk 0:00:24.2]} 98... Ra1 {[%clk 0:00:08.3]} 99. Re8 {[%clk
0:00:23.7]} 99... Rf1+ {[%clk 0:00:08.5]} 100. Kg4 {[%clk 0:00:24.2]} 100...
Rg1+ {[%clk 0:00:09.6]} 101. Kh3 {[%clk 0:00:25.4]} 101... Rh1+ {[%clk
0:00:10.5]} 102. Kg3 {[%clk 0:00:26.2]} 102... Rg1+ {[%clk 0:00:11.7]} 103. Kh2
{[%clk 0:00:27.4]} 103... Ra1 {[%clk 0:00:12.1]} 104. Kg3 {[%clk 0:00:28.3]}
104... Ra3+ {[%clk 0:00:12.8]} 105. Kg4 {[%clk 0:00:27.6]} 105... Ra4+ {[%clk
0:00:13.7]} 106. Kg3 {[%clk 0:00:28.7]} 106... Ra3+ {[%clk 0:00:14.9]} 107. Kg4
{[%clk 0:00:29.8]} 107... Ra1 {[%clk 0:00:14.1]} 108. Rh8+ {[%clk 0:00:29.6]}
108... Kg7 {[%clk 0:00:15.1]} 109. Rb8 {[%clk 0:00:30.4]} 109... Rg1+ {[%clk
0:00:15.9]} 110. Kf4 {[%clk 0:00:31.5]} 110... Kh6 {[%clk 0:00:16.1]} 111. Rb7
{[%clk 0:00:26.4]} 111... Ra1 {[%clk 0:00:14.7]} 112. Kg4 {[%clk 0:00:23.3]}
112... Ra4+ {[%clk 0:00:15.1]} 113. Kg3 {[%clk 0:00:23.9]} 113... Ra3+ {[%clk
0:00:14]} 1/2-1/2

[Event "*** Titled Tuesday Blitz"]
[Site "Chess.com"]
[Date "2019.08.06"]
[Round "9"]
[White "Saloni1299"]
[Black "Ceejay271"]
[Result "0-1"]
[WhiteElo "2037"]
[BlackElo "2284"]
[TimeControl "180+2"]
[EndTime "15:01:28 PDT"]
[Termination "Ceejay271 won by resignation"]

1. e4 {[%clk 0:03:01.9]} 1... c5 {[%clk 0:03:00.3]} 2. Nf3 {[%clk 0:03:02.5]}
2... d6 {[%clk 0:03:01.4]} 3. d4 {[%clk 0:03:03.6]} 3... cxd4 {[%clk 0:03:03.3]}
4. Nxd4 {[%clk 0:03:05]} 4... Nf6 {[%clk 0:03:04.7]} 5. Nc3 {[%clk 0:03:06.2]}
5... Nc6 {[%clk 0:03:06.3]} 6. Bg5 {[%clk 0:03:05.4]} 6... Bd7 {[%clk 0:03:07]}
7. Qd2 {[%clk 0:03:00.9]} 7... h6 {[%clk 0:03:07.5]} 8. Be3 {[%clk 0:02:49.4]}
8... Ng4 {[%clk 0:03:06.4]} 9. Bf4 {[%clk 0:02:49.1]} 9... Nxd4 {[%clk
0:03:04.7]} 10. Qxd4 {[%clk 0:02:49.1]} 10... e5 {[%clk 0:03:05.3]} 11. Qd2
{[%clk 0:02:42.2]} 11... exf4 {[%clk 0:03:03.3]} 0-1

[Event "*** Titled Tuesday Blitz"]
[Site "Chess.com"]
[Date "2019.08.06"]
[Round "9"]
[White "ClockworkKubrick"]
[Black "kinga2008"]
[Result "1-0"]
[WhiteElo "2175"]
[BlackElo "1923"]
[TimeControl "180+2"]
[EndTime "15:03:37 PDT"]
[Termination "ClockworkKubrick won by checkmate"]

1. e4 {[%clk 0:03:01.9]} 1... c5 {[%clk 0:03:00.7]} 2. Nf3 {[%clk 0:03:03.2]}
2... d6 {[%clk 0:03:01.6]} 3. Nc3 {[%clk 0:03:04.5]} 3... Nc6 {[%clk 0:03:02.2]}
4. Bb5 {[%clk 0:03:04.9]} 4... Nf6 {[%clk 0:03:03.2]} 5. O-O {[%clk 0:03:05.5]}
5... g6 {[%clk 0:03:02.9]} 6. d3 {[%clk 0:03:06.9]} 6... Bg7 {[%clk 0:03:04.5]}
7. Be3 {[%clk 0:03:06.5]} 7... O-O {[%clk 0:03:05.8]} 8. Bxc6 {[%clk 0:03:08]}
8... bxc6 {[%clk 0:03:06.5]} 9. Qd2 {[%clk 0:03:09.4]} 9... Ng4 {[%clk
0:03:07.7]} 10. Bf4 {[%clk 0:03:10.6]} 10... Bd7 {[%clk 0:03:04.5]} 11. h3
{[%clk 0:03:11]} 11... Nf6 {[%clk 0:03:03.3]} 12. Bh6 {[%clk 0:03:10.3]} 12...
Qb6 {[%clk 0:03:00.7]} 13. Bxg7 {[%clk 0:03:11.1]} 13... Kxg7 {[%clk 0:03:00.7]}
14. b3 {[%clk 0:03:12.5]} 14... d5 {[%clk 0:02:49.4]} 15. e5 {[%clk 0:03:12.8]}
15... Ne8 {[%clk 0:02:48.1]} 16. Rae1 {[%clk 0:03:08]} 16... e6 {[%clk
0:02:48.7]} 17. Nh2 {[%clk 0:03:08.1]} 17... Qb4 {[%clk 0:02:44.7]} 18. Ng4
{[%clk 0:03:02.8]} 18... Rh8 {[%clk 0:02:19.1]} 19. Qh6+ {[%clk 0:03:00.6]}
19... Kg8 {[%clk 0:02:17]} 20. Nf6+ {[%clk 0:03:00.3]} 20... Nxf6 {[%clk
0:02:10.2]} 21. exf6 {[%clk 0:03:00.3]} 21... Qxc3 {[%clk 0:01:30.3]} 22. Qg7#
{[%clk 0:03:00.9]} 1-0

[Event "*** Titled Tuesday Blitz"]
[Site "Chess.com"]
[Date "2019.08.06"]
[Round "9"]
[White "RegZryt"]
[Black "Padenie_Zvezd"]
[Result "0-1"]
[WhiteElo "2610"]
[BlackElo "2808"]
[TimeControl "180+2"]
[EndTime "15:04:19 PDT"]
[Termination "Padenie_Zvezd won by resignation"]

1. e4 {[%clk 0:03:01.9]} 1... Nf6 {[%clk 0:02:25.8]} 2. e5 {[%clk 0:03:01.1]}
2... Ng8 {[%clk 0:02:27.1]} 3. d4 {[%clk 0:03:01.9]} 3... Nc6 {[%clk 0:02:27.2]}
4. Nf3 {[%clk 0:03:00.6]} 4... Nb8 {[%clk 0:02:29.1]} 5. c4 {[%clk 0:03:01.1]}
5... Nc6 {[%clk 0:02:30.1]} 6. d5 {[%clk 0:03:01.5]} 6... Nb8 {[%clk 0:02:32]}
7. Nc3 {[%clk 0:03:02.6]} 7... Na6 {[%clk 0:02:32.9]} 8. Bd3 {[%clk 0:03:02.1]}
8... Nb8 {[%clk 0:02:34.8]} 9. O-O {[%clk 0:03:02.9]} 9... g6 {[%clk 0:02:36.7]}
10. Bg5 {[%clk 0:02:55.3]} 10... Bg7 {[%clk 0:02:38.6]} 11. Qd2 {[%clk
0:02:55.8]} 11... d6 {[%clk 0:02:39]} 12. exd6 {[%clk 0:02:55.8]} 12... cxd6
{[%clk 0:02:40.9]} 13. Rfe1 {[%clk 0:02:56.8]} 13... Nf6 {[%clk 0:02:41.9]} 14.
Bh6 {[%clk 0:02:54.7]} 14... O-O {[%clk 0:02:42.8]} 15. Bxg7 {[%clk 0:02:55.5]}
15... Kxg7 {[%clk 0:02:44.7]} 16. Ne4 {[%clk 0:02:56.1]} 16... Nbd7 {[%clk
0:02:44.6]} 17. Neg5 {[%clk 0:02:55.7]} 17... Nc5 {[%clk 0:02:42.5]} 18. Bc2
{[%clk 0:02:55.9]} 18... a5 {[%clk 0:02:43.4]} 19. b3 {[%clk 0:02:56.4]} 19...
h6 {[%clk 0:02:42.3]} 20. Ne4 {[%clk 0:02:54.7]} 20... Ncxe4 {[%clk 0:02:41.2]}
21. Bxe4 {[%clk 0:02:56.6]} 21... Bg4 {[%clk 0:02:29.1]} 22. Nd4 {[%clk
0:02:56.5]} 22... Qb6 {[%clk 0:02:27.5]} 23. h3 {[%clk 0:02:43.9]} 23... Bd7
{[%clk 0:02:27.8]} 24. Re3 {[%clk 0:02:35.9]} 24... Qb4 {[%clk 0:02:23.1]} 25.
Qd3 {[%clk 0:02:30.9]} 25... a4 {[%clk 0:02:21.5]} 26. Rae1 {[%clk 0:02:28.2]}
26... axb3 {[%clk 0:02:21.7]} 27. axb3 {[%clk 0:02:30.1]} 27... Ra2 {[%clk
0:02:20.2]} 28. Rg3 {[%clk 0:02:16.3]} 28... Qxe1+ {[%clk 0:02:19.5]} 0-1

[Event "*** Titled Tuesday Blitz"]
[Site "Chess.com"]
[Date "2019.08.06"]
[Round "9"]
[White "tteshan"]
[Black "minnesotachessmaster"]
[Result "1/2-1/2"]
[WhiteElo "2164"]
[BlackElo "1950"]
[TimeControl "180+2"]
[EndTime "15:04:36 PDT"]
[Termination "Game drawn by agreement"]

1. d4 {[%clk 0:03:01.9]} 1... e6 {[%clk 0:02:59.1]} 2. c4 {[%clk 0:02:58.9]}
2... Nf6 {[%clk 0:02:58.5]} 3. Nc3 {[%clk 0:02:59.8]} 3... Bb4 {[%clk
0:02:58.3]} 4. Bd2 {[%clk 0:02:59.7]} 4... O-O {[%clk 0:02:58.4]} 5. a3 {[%clk
0:03:00.1]} 5... Bxc3 {[%clk 0:02:57.9]} 6. Bxc3 {[%clk 0:03:02]} 6... Ne4
{[%clk 0:02:58.3]} 7. Qc2 {[%clk 0:03:02.9]} 7... Nxc3 {[%clk 0:02:58.6]} 8.
Qxc3 {[%clk 0:03:03.9]} 8... b6 {[%clk 0:02:59.1]} 9. e4 {[%clk 0:03:03.5]} 9...
f5 {[%clk 0:02:58.7]} 10. Bd3 {[%clk 0:03:02.7]} 10... Bb7 {[%clk 0:02:53.5]}
11. d5 {[%clk 0:02:59.7]} 11... fxe4 {[%clk 0:02:53]} 12. Bxe4 {[%clk
0:03:01.6]} 12... exd5 {[%clk 0:02:53.6]} 13. Bxd5+ {[%clk 0:03:00.4]} 13...
Bxd5 {[%clk 0:02:53.5]} 14. cxd5 {[%clk 0:03:02.3]} 14... Qe7+ {[%clk
0:02:51.2]} 15. Ne2 {[%clk 0:02:56.5]} 15... c6 {[%clk 0:02:42]} 16. dxc6 {[%clk
0:02:54.6]} 16... Nxc6 {[%clk 0:02:41.1]} 17. Qc4+ {[%clk 0:02:52.6]} 17... Kh8
{[%clk 0:02:39.7]} 18. O-O {[%clk 0:02:50.2]} 18... Rae8 {[%clk 0:02:32.7]} 19.
Ng3 {[%clk 0:02:45.2]} 19... Ne5 {[%clk 0:02:26.6]} 20. Qc2 {[%clk 0:02:35.1]}
20... Qh4 {[%clk 0:02:16.3]} 21. Nf5 {[%clk 0:02:21.6]} 21... Qg5 {[%clk
0:01:49.4]} 22. Ng3 {[%clk 0:01:55.8]} 22... Qh4 {[%clk 0:01:48.1]} 23. Nf5
{[%clk 0:01:54.4]} 23... Qg5 {[%clk 0:01:47.6]} 1/2-1/2

[Event "*** Titled Tuesday Blitz"]
[Site "Chess.com"]
[Date "2019.08.06"]
[Round "9"]
[White "TijanaBlagojevic"]
[Black "KacperPolOK"]
[Result "0-1"]
[WhiteElo "2278"]
[BlackElo "2412"]
[TimeControl "180+2"]
[EndTime "15:04:52 PDT"]
[Termination "KacperPolOK won by resignation"]

1. e4 {[%clk 0:03:01.9]} 1... e6 {[%clk 0:02:59.5]} 2. d4 {[%clk 0:03:01.9]}
2... d5 {[%clk 0:03:00.9]} 3. Nd2 {[%clk 0:02:51.1]} 3... Nf6 {[%clk 0:02:59.8]}
4. e5 {[%clk 0:02:06.3]} 4... Nfd7 {[%clk 0:02:59.8]} 5. Bd3 {[%clk 0:02:04.3]}
5... c5 {[%clk 0:02:59.7]} 6. c3 {[%clk 0:02:05.2]} 6... Nc6 {[%clk 0:03:00.9]}
7. Ne2 {[%clk 0:02:06]} 7... cxd4 {[%clk 0:03:02.3]} 8. cxd4 {[%clk 0:02:06.3]}
8... f6 {[%clk 0:03:03.9]} 9. exf6 {[%clk 0:02:06.5]} 9... Nxf6 {[%clk
0:03:04.8]} 10. O-O {[%clk 0:02:07.6]} 10... Bd6 {[%clk 0:03:06.4]} 11. Nf3
{[%clk 0:02:09.2]} 11... O-O {[%clk 0:03:07.2]} 12. Bf4 {[%clk 0:02:10.3]} 12...
Bxf4 {[%clk 0:03:08.9]} 13. Nxf4 {[%clk 0:02:12.2]} 13... Ne4 {[%clk 0:03:10.6]}
14. Qc1 {[%clk 0:02:11.1]} 14... Ng5 {[%clk 0:03:11.2]} 15. Nxg5 {[%clk
0:02:08]} 15... Qxg5 {[%clk 0:03:13.1]} 16. Ne2 {[%clk 0:02:09.2]} 16... Qf6
{[%clk 0:03:11.5]} 17. Qe3 {[%clk 0:02:08.3]} 17... Bd7 {[%clk 0:03:12.9]} 18.
Rac1 {[%clk 0:02:08.2]} 18... Rae8 {[%clk 0:03:04]} 19. Rc5 {[%clk 0:02:04.5]}
19... b6 {[%clk 0:02:51.1]} 20. Rcc1 {[%clk 0:02:03.8]} 20... e5 {[%clk
0:02:52.3]} 21. dxe5 {[%clk 0:02:05]} 21... Nxe5 {[%clk 0:02:52.5]} 22. Qd4
{[%clk 0:01:59]} 22... Nf3+ {[%clk 0:02:10.2]} 23. gxf3 {[%clk 0:01:59.2]} 23...
Qxf3 {[%clk 0:02:11.4]} 24. Qh4 {[%clk 0:01:55.6]} 24... Qxd3 {[%clk 0:02:08.2]}
25. Ng3 {[%clk 0:01:51]} 25... Re5 {[%clk 0:01:58.6]} 26. Rc7 {[%clk 0:01:50.2]}
26... Bb5 {[%clk 0:01:51.4]} 27. Qe7 {[%clk 0:01:50.8]} 27... Rxe7 {[%clk
0:01:45.8]} 0-1

[Event "*** Titled Tuesday Blitz"]
[Site "Chess.com"]
[Date "2019.08.06"]
[Round "9"]
[White "kasparicy"]
[Black "ChadBiryani"]
[Result "0-1"]
[WhiteElo "2392"]
[BlackElo "2392"]
[TimeControl "180+2"]
[EndTime "15:04:56 PDT"]
[Termination "ChadBiryani won by resignation"]

1. e4 {[%clk 0:02:58.7]} 1... c5 {[%clk 0:02:54.9]} 2. Nf3 {[%clk 0:02:59.5]}
2... d6 {[%clk 0:02:54.5]} 3. d4 {[%clk 0:03:01.4]} 3... cxd4 {[%clk 0:02:55.5]}
4. Nxd4 {[%clk 0:03:03.3]} 4... Nf6 {[%clk 0:02:56]} 5. Nc3 {[%clk 0:03:04.7]}
5... g6 {[%clk 0:02:57.2]} 6. Be3 {[%clk 0:03:03.5]} 6... Bg7 {[%clk 0:02:58]}
7. Qd2 {[%clk 0:03:02.7]} 7... Ng4 {[%clk 0:02:58.4]} 8. O-O-O {[%clk
0:02:57.9]} 8... Nxe3 {[%clk 0:02:59]} 9. Qxe3 {[%clk 0:02:59.8]} 9... O-O
{[%clk 0:03:00.1]} 10. h4 {[%clk 0:03:00.9]} 10... h6 {[%clk 0:02:53.8]} 11. f3
{[%clk 0:03:01]} 11... Nc6 {[%clk 0:02:53.8]} 12. Nxc6 {[%clk 0:03:00.5]} 12...
bxc6 {[%clk 0:02:55.7]} 13. Bc4 {[%clk 0:03:01.6]} 13... Qa5 {[%clk 0:02:46.3]}
14. Bb3 {[%clk 0:02:59.4]} 14... Be6 {[%clk 0:02:01.7]} 15. Kb1 {[%clk
0:02:41.4]} 15... Rab8 {[%clk 0:01:59.9]} 16. g4 {[%clk 0:02:39.7]} 16... Bxb3
{[%clk 0:01:32.2]} 17. cxb3 {[%clk 0:02:38]} 17... Qb4 {[%clk 0:01:29.3]} 18. h5
{[%clk 0:02:21.2]} 18... g5 {[%clk 0:01:29.4]} 19. Ne2 {[%clk 0:02:22.2]} 19...
a5 {[%clk 0:01:27.6]} 20. f4 {[%clk 0:02:19]} 20... a4 {[%clk 0:01:25]} 21. Nd4
{[%clk 0:02:20.1]} 21... gxf4 {[%clk 0:01:08.6]} 22. Qf2 {[%clk 0:02:18.3]}
22... axb3 {[%clk 0:01:09.5]} 23. Nxb3 {[%clk 0:02:13.6]} 23... Qxe4+ {[%clk
0:01:09.9]} 24. Ka1 {[%clk 0:02:15.1]} 24... Rxb3 {[%clk 0:01:08.7]} 0-1

[Event "*** Titled Tuesday Blitz"]
[Site "Chess.com"]
[Date "2019.08.06"]
[Round "9"]
[White "bluejay1897"]
[Black "doons21"]
[Result "1/2-1/2"]
[WhiteElo "2307"]
[BlackElo "2574"]
[TimeControl "180+2"]
[EndTime "15:04:59 PDT"]
[Termination "Game drawn by repetition"]

1. Nf3 {[%clk 0:02:00.4]} 1... Nf6 {[%clk 0:02:33.5]} 2. g3 {[%clk 0:02:01.2]}
2... g6 {[%clk 0:02:34.2]} 3. b3 {[%clk 0:02:02]} 3... Bg7 {[%clk 0:02:36.1]} 4.
Bb2 {[%clk 0:02:03.7]} 4... O-O {[%clk 0:02:37.1]} 5. Bg2 {[%clk 0:02:05.3]}
5... a5 {[%clk 0:02:34.3]} 6. a3 {[%clk 0:02:04.2]} 6... b6 {[%clk 0:02:28.6]}
7. O-O {[%clk 0:02:02]} 7... Bb7 {[%clk 0:02:29.5]} 8. c4 {[%clk 0:02:03.6]}
8... d6 {[%clk 0:02:27.8]} 9. d4 {[%clk 0:02:04.3]} 9... Nbd7 {[%clk 0:02:28.8]}
10. Nc3 {[%clk 0:02:04.1]} 10... Ne4 {[%clk 0:02:23.1]} 11. Qc2 {[%clk
0:01:57.7]} 11... Ndf6 {[%clk 0:02:21.3]} 12. Nd2 {[%clk 0:01:44.8]} 12... Nxd2
{[%clk 0:02:20]} 13. Qxd2 {[%clk 0:01:40.9]} 13... Bxg2 {[%clk 0:02:19.6]} 14.
Kxg2 {[%clk 0:01:42.8]} 14... d5 {[%clk 0:02:19.6]} 15. Rac1 {[%clk 0:01:32.8]}
15... e6 {[%clk 0:02:10.9]} 16. cxd5 {[%clk 0:01:29.7]} 16... exd5 {[%clk
0:02:09.8]} 17. Nb5 {[%clk 0:01:24.2]} 17... Rc8 {[%clk 0:01:54.5]} 18. Na7
{[%clk 0:01:23.8]} 18... Ra8 {[%clk 0:01:53.7]} 19. Nb5 {[%clk 0:01:20.3]} 19...
Rc8 {[%clk 0:01:43.4]} 20. Na7 {[%clk 0:01:18]} 20... Ra8 {[%clk 0:01:43.4]} 21.
Nb5 {[%clk 0:01:19]} 1/2-1/2

[Event "*** Titled Tuesday Blitz"]
[Site "Chess.com"]
[Date "2019.08.06"]
[Round "9"]
[White "biostatistician"]
[Black "Everyfishknows"]
[Result "1/2-1/2"]
[WhiteElo "2543"]
[BlackElo "2410"]
[TimeControl "180+2"]
[EndTime "15:05:07 PDT"]
[Termination "Game drawn by repetition"]

1. d4 {[%clk 0:03:01.6]} 1... Nf6 {[%clk 0:03:00]} 2. Nf3 {[%clk 0:03:03.5]}
2... g6 {[%clk 0:02:56.3]} 3. c4 {[%clk 0:03:04.4]} 3... Bg7 {[%clk 0:02:56.4]}
4. Nc3 {[%clk 0:03:06.3]} 4... O-O {[%clk 0:02:57.4]} 5. e4 {[%clk 0:03:07.6]}
5... d6 {[%clk 0:02:58.8]} 6. Be2 {[%clk 0:03:09.5]} 6... e5 {[%clk 0:02:59.1]}
7. dxe5 {[%clk 0:03:11.4]} 7... dxe5 {[%clk 0:03:00]} 8. Qxd8 {[%clk 0:03:10.8]}
8... Rxd8 {[%clk 0:03:01.1]} 9. Bg5 {[%clk 0:03:12.7]} 9... Re8 {[%clk
0:03:02.5]} 10. Nd5 {[%clk 0:03:13.1]} 10... Nxd5 {[%clk 0:03:03]} 11. cxd5
{[%clk 0:03:15]} 11... c6 {[%clk 0:03:04.5]} 12. Bc4 {[%clk 0:03:16.5]} 12...
cxd5 {[%clk 0:03:05.4]} 13. Bxd5 {[%clk 0:03:18.4]} 13... Nd7 {[%clk 0:03:07]}
14. Nd2 {[%clk 0:03:18.6]} 14... Nf6 {[%clk 0:03:03.5]} 15. Bxf6 {[%clk
0:03:19]} 15... Bxf6 {[%clk 0:03:04.2]} 16. Ke2 {[%clk 0:03:20.5]} 16... Be6
{[%clk 0:02:58.5]} 17. Bxe6 {[%clk 0:03:20.6]} 17... Rxe6 {[%clk 0:02:59.4]} 18.
Nf3 {[%clk 0:03:20.7]} 18... Rc6 {[%clk 0:02:58.4]} 19. Rhc1 {[%clk 0:03:20.5]}
19... Rac8 {[%clk 0:02:58.8]} 20. Rxc6 {[%clk 0:03:20.3]} 20... Rxc6 {[%clk
0:03:00.7]} 21. Kd2 {[%clk 0:03:21.7]} 21... Kf8 {[%clk 0:02:57.7]} 22. Rc1
{[%clk 0:03:21.9]} 22... Rxc1 {[%clk 0:02:58.4]} 23. Kxc1 {[%clk 0:03:23.8]}
23... Ke7 {[%clk 0:02:59.3]} 24. Kc2 {[%clk 0:03:20.3]} 24... Ke6 {[%clk
0:02:58.2]} 25. Kd3 {[%clk 0:03:19.1]} 25... b5 {[%clk 0:02:58.4]} 26. Kc3
{[%clk 0:03:09.4]} 26... Be7 {[%clk 0:02:58.4]} 27. Ne1 {[%clk 0:03:05.3]} 27...
Kd7 {[%clk 0:02:39.8]} 28. Nd3 {[%clk 0:03:05.6]} 28... f6 {[%clk 0:02:41]} 29.
a4 {[%clk 0:03:05.4]} 29... bxa4 {[%clk 0:02:37.1]} 30. Nb4 {[%clk 0:02:54.6]}
30... Bxb4+ {[%clk 0:02:09.9]} 31. Kxb4 {[%clk 0:02:56.5]} 31... Kc6 {[%clk
0:02:08]} 32. f3 {[%clk 0:02:54.3]} 32... Kb6 {[%clk 0:02:05.9]} 33. Kxa4 {[%clk
0:02:54.4]} 33... a5 {[%clk 0:02:03.7]} 34. g4 {[%clk 0:02:49.2]} 34... g5
{[%clk 0:02:02.2]} 35. b4 {[%clk 0:02:39.9]} 35... axb4 {[%clk 0:02:02.5]} 36.
Kxb4 {[%clk 0:02:41.8]} 36... Kc6 {[%clk 0:01:52.5]} 37. Kc4 {[%clk 0:02:42.7]}
37... Kd6 {[%clk 0:01:49.2]} 38. Kb5 {[%clk 0:02:43.9]} 38... Kd7 {[%clk
0:01:50.3]} 39. Kc5 {[%clk 0:02:40.9]} 39... Kc7 {[%clk 0:01:51.3]} 40. Kd5
{[%clk 0:02:40.6]} 40... Kd7 {[%clk 0:01:51.8]} 41. Kc5 {[%clk 0:02:42.2]} 41...
Kc7 {[%clk 0:01:53.2]} 42. Kb5 {[%clk 0:02:43.5]} 42... Kb7 {[%clk 0:01:54.2]}
43. Kc5 {[%clk 0:02:38.3]} 43... Kc7 {[%clk 0:01:55.1]} 1/2-1/2